Cogmind - Beta 13 @@@ ROGUE MODE // 2024.04.03 @ 13:49:27 Player: f_ Result: Self-destructed Performance ------------- Evolutions (3) 1500 Regions Visited (8) 1600 Robots Destroyed (38) 190 Value Destroyed (1275) 1275 Prototype IDs (27) 540 Alien Tech Used (0) 0 Bonus (1200) 1200 TOTAL SCORE: 6305 Bonus ------- Entered Garrisons 400 Used RIF Installer 500 Aligned with FarCom 300 Cogmind --------- Core Integrity 380/700 Matter 253/300 Energy 100/100 System Corruption 0% Temperature Cool (0) Movement Flying (35) Location -7/Garrison Parts ------- > --- POWER (1) -------- (None) > --- PROPULSION (6) --- VTOL Module > --- UTILITY (4) ------ (None) > --- WEAPON (2) ------- (None) > --- INVENTORY (5) ---- Cloak of Protection EM Pulse Cannon Datajack Peak State ------------ > --- POWER ------------ Deuterium Engine > --- PROPULSION ------- Armored Treads Armored Treads Advanced Treads Advanced Treads Advanced Treads Advanced Treads > --- UTILITY ---------- Large Storage Unit Improved Light Armor Plating > --- WEAPON ----------- Advanced Beam Rifle Assault Cannon > --- INVENTORY -------- Improved Ion Engine Improved Signal Interpreter Cloak of Protection EM Pulse Cannon Beam Cannon High-powered Shotgun Datajack [Rating: 34] Favorites ----------- Power Deuterium Engine Engine Deuterium Engine Propulsion Advanced Treads Treads Advanced Treads Wheel Wheel Flight Unit Flight Unit Utility Large Storage Unit Device Cloak of Protection Storage Large Storage Unit Hackware System Shield Protection Improved Light Armor Plating Weapon Advanced Beam Rifle Energy Gun Advanced Beam Rifle Energy Cannon EM Pulse Cannon Ballistic Gun Autogun Ballistic Cannon Assault Cannon Launcher Grenade Launcher Build | -11 -10 -10 -10 -9 -8 -8 -7 -7 ------- Run | Yrd Mat Min Exi Min Mat Gar Fac Gar Slots Evolved 6 | . . . . . 4 . 2 . Power . | . . . . . . . . . Propulsion 4 | . . . . . 4 . . . Utility 2 | . . . . . . . 2 . Weapon . | . . . . . . . . . Parts Attached 46 | 6 . 3 . 2 25 . . 10 Power 4 | 1 . . . . 2 . . 1 Engine 4 | 1 . . . . 2 . . 1 Core . | . . . . . . . . . Reactor . | . . . . . . . . . Propulsion 18 | 2 . 2 . . 10 . . 4 Treads 8 | . . . . . 8 . . . Leg . | . . . . . . . . . Wheel 3 | 2 . . . . 1 . . . Hover . | . . . . . . . . . Flight 7 | . . 2 . . 1 . . 4 Utility 7 | 1 . . . 1 5 . . . Device 3 | . . . . 1 2 . . . Storage 2 | 1 . . . . 1 . . . Processor . | . . . . . . . . . Hackware 1 | . . . . . 1 . . . Protection 1 | . . . . . 1 . . . Artifact . | . . . . . . . . . Weapon 17 | 2 . 1 . 1 8 . . 5 Energy Gun 4 | 2 . . . . 1 . . 1 Energy Cannon 2 | . . . . . . . . 2 Ballistic Gun 4 | . . . . 1 2 . . 1 Ballistic Cannon 3 | . . . . . 3 . . . Launcher 4 | . . 1 . . 2 . . 1 Special Weapon . | . . . . . . . . . Impact Weapon . | . . . . . . . . . Slashing Weapon . | . . . . . . . . . Piercing Weapon . | . . . . . . . . . Special Melee Weapon . | . . . . . . . . . Unidentified Prototypes 2 | . . . . 1 1 . . . Parts Lost 18 | . . 3 . . 9 . . 6 Power 1 | . . . . . 1 . . . Propulsion 10 | . . 2 . . 4 . . 4 Utility 1 | . . . . . 1 . . . Weapon 6 | . . 1 . . 3 . . 2 Highest Loss Streak 9 | . . 3 . . 9 . . 5 To Critical Strikes . | . . . . . . . . . Average Slot Usage (%) 71 | . 85 67 57 57 68 100 84 67 Engine 9 | . 14 14 14 14 8 9 7 6 Treads 23 | . . . . . 26 54 46 26 Wheel 2 | . 28 13 . . . . . . Flight 8 | . . 8 28 28 4 . . 15 Storage 5 | . 14 10 . . 6 9 7 2 Protection 4 | . . . . . 5 9 7 2 Energy Gun 7 | . 28 14 14 . 5 9 7 6 Ballistic Gun 2 | . . . . 13 1 . . 3 Ballistic Cannon 4 | . . . . . 6 9 7 1 Naked Turns 7 | . . . . . 7 . . . Heaviest Build 44 | 13 13 15 7 8 42 39 39 44 Greatest Support 128 | 26 26 26 8 8 128 128 128 128 Greatest Overweight (x) 3 | . . 3 . . 2 . . . Average Overweight (x) . | . . . . . . . . . Largest Inventory Capacity 15 | 8 8 8 5 5 15 15 15 15 Average Capacity 10 | 7 8 7 5 5 12 15 15 8 Most Carried 12 | 4 6 8 5 5 9 6 9 12 Average Carried 4 | 1 3 5 4 4 4 6 8 5 Final Capacity 15 | 8 8 5 5 5 15 15 15 5 Final Carried 9 | 1 6 4 5 5 6 6 9 3 Class Distribution -------------------- 93% | Mutant 6% | Scavenger-Mutant Dominant Class ---------------- Mutant | -10/Materials Mutant | -10/Mines Mutant | -10/Exiles Mutant | -9/Mines Mutant | -8/Materials Mutant | -8/Garrison Mutant | -7/Factory Mutant | -7/Garrison Resources | -11 -10 -10 -10 -9 -8 -8 -7 -7 ----------- Run | Yrd Mat Min Exi Min Mat Gar Fac Gar Matter Collected 813 | . . 208 . 65 318 122 . 100 Remotely . | . . . . . . . . . Salvage Created 1064 | . . 239 . . 411 205 . 209 Parts 66 | . . 13 . . 32 10 . 11 Haulers Intercepted 1 | . . . . . 1 . . . Recyclers Shooed . | . . . . . . . . . Parts Field Recycled . | . . . . . . . . . Retrieved Matter . | . . . . . . . . . Parts Self-Destructed . | . . . . . . . . . Prevented . | . . . . . . . . . Kills | -11 -10 -10 -10 -9 -8 -8 -7 -7 ------- Run | Yrd Mat Min Exi Min Mat Gar Fac Gar Combat Hostiles Destroyed 32 | . . 7 . . 11 7 . 7 Guns 15 | . . 3 . . 4 6 . 2 Cannons 5 | . . . . . 2 1 . 2 AOE 12 | . . 4 . . 5 . . 3 Classes Destroyed 11 | . . 3 . . 7 . . 1 Worker 1 | . . . . . 1 . . . Builder 1 | . . . . . 1 . . . Tunneler 1 | . . . . . 1 . . . Hauler 1 | . . . . . 1 . . . Recycler 1 | . . 1 . . . . . . Watcher 1 | . . . . . 1 . . . Swarmer 14 | . . 3 . . 3 4 . 4 Cutter 1 | . . . . . . . . 1 Grunt 12 | . . 4 . . 5 2 . 1 Duelist 1 | . . . . . 1 . . . Sentry 4 | . . . . . 2 1 . 1 Best Kill Streak 5 | . . 3 . . 5 4 . 4 Combat Bots Only 4 | . . 3 . . 4 4 . 4 Max Kills in Single Turn 3 | . . 2 . . 3 1 . 2 Gunslinging . | . . . . . . . . . Exploded 2 | . . 2 . . 2 . . 2 Melee . | . . . . . . . . . Uniques/NPCs Destroyed . | . . . . . . . . . Combat | -11 -10 -10 -10 -9 -8 -8 -7 -7 -------- Run | Yrd Mat Min Exi Min Mat Gar Fac Gar Hostile Shots Fired 337 | . . 21 . . 105 55 32 124 Missed 90 | . . 3 . . 34 8 8 37 Damage Taken 3544 | . . 304 . . 1514 418 171 1137 Core 740 | . . 85 . . 328 7 . 320 Absorbed by Shields 85 | . . . . . . . . 85 Core Remaining (%) 68 | 100 . . . 66 . 39 . . Volleys Fired 125 | . 2 24 . . 49 30 . 20 Largest 2 | . 2 1 . . 1 2 . 2 Hottest 126 | . 90 50 . . 61 105 . 126 Shots Fired 138 | . 4 24 . . 49 36 . 25 Gun 96 | . 4 16 . . 33 30 . 13 Cannon 26 | . . . . . 12 6 . 8 Launcher 16 | . . 8 . . 4 . . 4 Special . | . . . . . . . . . Kinetic 25 | . . . . . 19 6 . . Thermal 89 | . 4 16 . . 26 30 . 13 Explosive 16 | . . 8 . . 4 . . 4 Electromagnetic 8 | . . . . . . . . 8 Robot Hit Streak 7 | . 1 6 . . 4 7 . 5 Robot Miss Streak 4 | . 3 3 . . 3 4 . 3 Penetration Max . | . . . . . . . . . Secondary Targets . | . . . . . . . . . Shots Hit Robots 72 | . 1 15 . . 25 20 . 11 Core Hits 66 | . 1 14 . . 30 9 . 12 Critical Kills . | . . . . . . . . . Critical Parts Destroyed . | . . . . . . . . . Critical Strikes 3 | . . . . . 2 . . 1 Burn 2 | . . . . . 2 . . . Corrupt 1 | . . . . . . . . 1 Melee Attacks . | . . . . . . . . . Impact . | . . . . . . . . . Slashing . | . . . . . . . . . Piercing . | . . . . . . . . . Sneak Attacks . | . . . . . . . . . Combat Hostiles . | . . . . . . . . . Follow-up Attacks . | . . . . . . . . . Damage Inflicted 2488 | . 11 563 . . 988 411 . 515 Guns 994 | . 11 112 . . 391 340 . 140 Cannons 308 | . . . . . 174 71 . 63 Explosions 1186 | . . 451 . . 423 . . 312 Melee . | . . . . . . . . . Ramming . | . . . . . . . . . Kinetic 376 | . . . . . 305 71 . . Thermal 863 | . 11 112 . . 260 340 . 140 Explosive 1186 | . . 451 . . 423 . . 312 Electromagnetic 63 | . . . . . . . . 63 Impact . | . . . . . . . . . Slashing . | . . . . . . . . . Piercing . | . . . . . . . . . Highest Corruption . | . . . . . . . . . Average Corruption . | . . . . . . . . . Corruption Purged . | . . . . . . . . . Corruption Blocked . | . . . . . . . . . Overload Shots . | . . . . . . . . . Overflow Damage 14 | . . 1 . . 13 . . . Projectiles . | . . . . . . . . . Explosions 14 | . . 1 . . 13 . . . Melee . | . . . . . . . . . Knockbacks 5 | . . . . . 4 1 . . Impact . | . . . . . . . . . Kinetic 5 | . . . . . 4 1 . . Secondary . | . . . . . . . . . Self-Inflicted Damage 215 | . . 109 . . 2 . . 104 Shots 8 | . . 5 . . 1 . . 2 Rammed . | . . . . . . . . . Targets Rammed . | . . . . . . . . . Kicked . | . . . . . . . . . Crushed . | . . . . . . . . . Highest Temperature 298 | . 30 62 . . 70 275 . 298 Average Temperature 77 | . 17 20 . . 22 120 . 138 Received Heat Transfer 798 | . . 84 . . 459 81 . 174 Effects 1 | . . . . . . . . 1 Energy Bleed 1 | . . . . . . . . 1 Siege Activations . | . . . . . . . . . Robots Corrupted . | . . . . . . . . . Combat Hostiles . | . . . . . . . . . Parts Fried 1 | . . . . . . . . 1 Impact Corruptions . | . . . . . . . . . Robots Melted . | . . . . . . . . . Combat Hostiles . | . . . . . . . . . Parts Melted 1 | . . . . . 1 . . . Heat Transferred 1875 | . 25 333 . . 629 629 . 259 Parts Sabotaged . | . . . . . . . . . Parts Stolen . | . . . . . . . . . Parts Stripped . | . . . . . . . . . Power Chain Reactions . | . . . . . . . . . Alert | -11 -10 -10 -10 -9 -8 -8 -7 -7 ------- Run | Yrd Mat Min Exi Min Mat Gar Fac Gar Peak Influence 461 | . 30 234 . . 172 234 122 461 Initial 122 | . . 11 . . . 79 122 85 Average 84 | . 21 140 . . 60 156 122 169 Maximum Alert Level 2 | . . 1 . . . 1 . 2 Low Security (%) 94 | 100 100 86 . 100 100 71 100 92 Level 1 5 | . . 13 . . . 28 . 3 Level 2 . | . . . . . . . . 4 Level 3 . | . . . . . . . . . Level 4 . | . . . . . . . . . Level 5 . | . . . . . . . . . High Security . | . . . . . . . . . Max Security . | . . . . . . . . . Squads Dispatched 5 | . 1 . . . 3 . 1 . Investigation 1 | . . . . . . . 1 . Extermination . | . . . . . . . . . Reinforcement 4 | . 1 . . . 3 . . . Assault . | . . . . . . . . . Garrison . | . . . . . . . . . Intercept . | . . . . . . . . . Searches Triggered . | . . . . . . . . . Construction Impeded . | . . . . . . . . . Haulers Reinforced . | . . . . . . . . . Active Scanning Responses . | . . . . . . . . . Cargo Convoy Interrupts . | . . . . . . . . . Stealth | -11 -10 -10 -10 -9 -8 -8 -7 -7 --------- Run | Yrd Mat Min Exi Min Mat Gar Fac Gar Distress Signals 6 | . . . . . 6 . . . Communications Jammed . | . . . . . . . . . Distress Signals . | . . . . . . . . . Times Spotted 89 | . 1 7 . . 47 7 2 25 Peak Tracking Total 16 | . 1 3 . . 15 4 2 16 Tactical Retreats 4 | . . . . . 2 . . 2 Traps | -11 -10 -10 -10 -9 -8 -8 -7 -7 ------- Run | Yrd Mat Min Exi Min Mat Gar Fac Gar Traps Triggered 5 | . . . . . . 1 1 3 Indirectly . | . . . . . . . . . Trap Hack Attempts . | . . . . . . . . . Triggered . | . . . . . . . . . Disarmed . | . . . . . . . . . Reprogrammed . | . . . . . . . . . Reused . | . . . . . . . . . Traps Extracted . | . . . . . . . . . Installed . | . . . . . . . . . Triggered . | . . . . . . . . . Machines | -11 -10 -10 -10 -9 -8 -8 -7 -7 ---------- Run | Yrd Mat Min Exi Min Mat Gar Fac Gar Machines Disabled 4 | . . . . . 3 . . 1 Max in Single Turn 2 | . . . . . 2 . . 1 Garrison Relay 1 | . . . . . . . . 1 Machines Repaired . | . . . . . . . . . Machines Dismantled . | . . . . . . . . . Machines Sabotaged . | . . . . . . . . . Overloaded Fab Kills . | . . . . . . . . . Hacking | -11 -10 -10 -10 -9 -8 -8 -7 -7 --------- Run | Yrd Mat Min Exi Min Mat Gar Fac Gar Machines Accessed 11 | . 2 . 2 1 5 . 1 . Terminals 6 | . 2 . . . 4 . . . Fabricators . | . . . . . . . . . Repair Stations . | . . . . . . . . . Recycling Units . | . . . . . . . . . Scanalyzers . | . . . . . . . . . Garrison Access 2 | . . . . . 1 . 1 . Total Hacks 25 | . 5 . 2 1 14 . 3 . Successful 12 | . . . 2 1 7 . 2 . Failed 13 | . 5 . . . 7 . 1 . Catastrophic 5 | . 1 . . . 3 . 1 . Database Lockouts . | . . . . . . . . . Manual 19 | . 5 . 1 . 12 . 1 . Terminals 18 | . 5 . . . 13 . . . Fabricators . | . . . . . . . . . Repair Stations . | . . . . . . . . . Recycling Units . | . . . . . . . . . Scanalyzers . | . . . . . . . . . Garrison Access 4 | . . . . . 1 . 3 . Terminal Hacks 8 | . . . 2 1 5 . . . Record 1 | . . . 1 . . . . . Prototype ID Bank 1 | . . . . . 1 . . . Open Door 1 | . . . . 1 . . . . Level Access Points 1 | . . . . . 1 . . . Terminal Index 1 | . . . . . 1 . . . Alert Level 1 | . . . . . 1 . . . Registered Components 1 | . . . . . 1 . . . Derelict Proto ID Bank 1 | . . . 1 . . . . . Fabricator Hacks . | . . . . . . . . . Repair Station Hacks . | . . . . . . . . . Recycling Unit Hacks . | . . . . . . . . . Scanalyzer . | . . . . . . . . . Garrison Access Hacks 3 | . . . . . 1 . 2 . Unlock Access 2 | . . . . . 1 . 1 . Coupler Status 1 | . . . . . . . 1 . Unauthorized Hacks 1 | . . . . . 1 . . . Terminals 1 | . . . . . 1 . . . Botnet 1 | . . . . . 1 . . . Fabricators . | . . . . . . . . . Repair Stations . | . . . . . . . . . Recycling Units . | . . . . . . . . . Scanalyzers . | . . . . . . . . . Garrison Access . | . . . . . . . . . Data Cores Recovered . | . . . . . . . . . Used . | . . . . . . . . . Hacking Detections 7 | . 2 . . . 4 . 1 . Full Trace Events 2 | . 1 . . . 1 . . . Feedback Events . | . . . . . . . . . Feedback Blocked . | . . . . . . . . . Robot Schematics Acquired . | . . . . . . . . . Robots Built . | . . . . . . . . . Authchips . | . . . . . . . . . Time . | . . . . . . . . . Total Robot Build Rating . | . . . . . . . . . Part Schematics Acquired . | . . . . . . . . . Parts Built . | . . . . . . . . . Authchips . | . . . . . . . . . Time . | . . . . . . . . . Total Part Build Rating . | . . . . . . . . . Parts Repaired . | . . . . . . . . . Time . | . . . . . . . . . Parts Recycled . | . . . . . . . . . Recycled Matter . | . . . . . . . . . Retrieved Matter . | . . . . . . . . . Retrieved Components . | . . . . . . . . . Parts Scanalyzed . | . . . . . . . . . Part Schematics Acquired . | . . . . . . . . . Parts Damaged . | . . . . . . . . . Bothacking | -11 -10 -10 -10 -9 -8 -8 -7 -7 ------------ Run | Yrd Mat Min Exi Min Mat Gar Fac Gar Used RIF Installer 1 | . . . . . . 1 . . Robots Hacked . | . . . . . . . . . Non-combat . | . . . . . . . . . Combat . | . . . . . . . . . Robot Hacks Applied . | . . . . . . . . . Relay Couplers Released 3 | . . . . . . . . 3 Machine Destruction 3 | . . . . . . . . 3 Fabnet Peak Effective % . | . . . . . . . . . Robots Rewired . | . . . . . . . . . Allies Hacked . | . . . . . . . . . Hacks Repelled . | . . . . . . . . . Allies | -11 -10 -10 -10 -9 -8 -8 -7 -7 -------- Run | Yrd Mat Min Exi Min Mat Gar Fac Gar Total Allies . | . . . . . . . . . Largest Group . | . . . . . . . . . Highest-Rated Group . | . . . . . . . . . Highest-Rated Ally . | . . . . . . . . . Total Orders 9 | . . . . . 9 . . . EXPLORE 9 | . . . . . 9 . . . Ally Attacks 10 | . . . . . 10 . . . Total Damage . | . . . . . . . . . Kills . | . . . . . . . . . Allies Corrupted . | . . . . . . . . . Allies Melted . | . . . . . . . . . Intel | -11 -10 -10 -10 -9 -8 -8 -7 -7 ------- Run | Yrd Mat Min Exi Min Mat Gar Fac Gar Robot Analysis Total . | . . . . . . . . . Derelict Logs Recovered 1 | . . . . 1 . . . . Drone Launches 10 | . . . . . 10 . . . Drone Recoveries . | . . . . . . . . . Exploration | -11 -10 -10 -10 -9 -8 -8 -7 -7 ------------- Run | Yrd Mat Min Exi Min Mat Gar Fac Gar Turns Passed 2347 | 38 113 144 83 298 987 294 69 321 Spaces Moved 2388 | 33 114 128 220 777 735 147 43 191 Core 54 | 10 . 3 . . 41 . . . Treads 626 | . . . . . 392 147 43 44 Legs . | . . . . . . . . . Wheels 211 | 23 114 64 . . 10 . . . Hover . | . . . . . . . . . Flight 1497 | . . 61 220 777 292 . . 147 Fastest Speed 26 | 50 90 37 37 37 34 153 153 26 Average Speed 75 | 77 90 68 37 37 108 153 153 69 Slowest Speed 245 | 90 90 200 37 37 245 153 153 153 Overloaded Moves . | . . . . . . . . . Propulsion Burnouts . | . . . . . . . . . Robots Hopped 14 | . . . . 11 . . . 3 Cave-ins Triggered . | . . . . . . . . . Exploration Rate (%) 36 | 3 30 28 61 78 61 34 2 34 Regions Visited 8 Branch Regions 3 Pre-discovered Areas 3 | . . . 1 2 . . . . Known Exits Taken 2 | . . . . . 1 . 1 . Unknown Exits Taken 5 | 1 1 1 1 1 . . . . Scrap Searched 2 | . . . . 2 . . . . Spaces Dug 1 | . . . . . 1 . . . Terrain Destroyed 95 | . . 58 . . 10 . . 27 Melee . | . . . . . . . . . Projectile 3 | . . . . . 3 . . . AOE 92 | . . 58 . . 7 . . 27 Terrain Rammed . | . . . . . . . . . Walls Destroyed . | . . . . . . . . . Machines Disabled . | . . . . . . . . . Actions | -11 -10 -10 -10 -9 -8 -8 -7 -7 --------- Run | Yrd Mat Min Exi Min Mat Gar Fac Gar Total 2777 | 45 120 161 220 777 872 181 46 355 Wait 155 | . . . . 4 37 6 . 108 Move 2355 | 32 113 127 219 756 735 145 43 185 Hop 12 | . . . . 9 . . . 3 Pick Up 45 | 7 5 3 1 1 21 . 3 4 Fast Attach 2 | . . . . 2 . . . . Attach 34 | 6 . 2 . . 20 . . 6 Detach 3 | . . . . 1 2 . . . Swap 10 | . . 1 . . 5 . . 4 Drop 23 | . . 4 . 4 3 . . 12 Fire 125 | . 2 24 . . 49 30 . 20 Melee . | . . . . . . . . . Ram . | . . . . . . . . . Kick . | . . . . . . . . . Crush . | . . . . . . . . . Escape Stasis 13 | . . . . . . . . 13 Rewire . | . . . . . . . . . Trap . | . . . . . . . . . Miscellaneous . | . . . . . . . . . Route ------- -11/Scrapyard -10/Materials -10/Mines -10/Exiles -9/Mines -8/Materials (discovered 4 exits: Fac x3 / Gar) -8/Garrison -7/Factory -7/Garrison History --------- Turn | Location | Event 5 | -11/Scrapyard | Discovered new exit (range 16) 39 | -11/Scrapyard | Entered Materials 138 | -10/Materials | Discovered new exit (range 7) 152 | -10/Materials | Entered Mines 262 | -10/Mines | Lost 3 parts (2n1w) 294 | -10/Mines | Deemed a non-threat by the Exiles lab entrance 294 | -10/Mines | Discovered new exit (range 5) 296 | -10/Mines | Entered Exiles 306 | -10/Exiles | Met 8R-AWN 307 | -10/Exiles | Build established: Mutant 313 | -10/Exiles | Met EX-HEX 324 | -10/Exiles | Met EX-BIN 328 | -10/Exiles | Aligned with FarCom system 328 | -10/Exiles | Given EX-Vault access code 337 | -10/Exiles | Opened EX-Vault 340 | -10/Exiles | Found Cloak of Protection 349 | -10/Exiles | Warned to stay clear of 0b10 Research branches 359 | -10/Exiles | Met EX-DEC 363 | -10/Exiles | Learned location of Zion (-7) 374 | -10/Exiles | Discovered new exit (range 14) 379 | -10/Exiles | Left Exiles lab with Cloak of Protection 379 | -10/Exiles | Entered Mines 437 | -9/Mines | Found a hidden stash of uninstalled traps 441 | -9/Mines | Learned location of Storage (-7) 666 | -9/Mines | Discovered new exit (range 5) 671 | -9/Mines | Found the Drone Emporium 672 | -9/Mines | Found Prototype Device 672 | -9/Mines | Identified Bomb Drone Bay 677 | -9/Mines | Entered Materials 677 | -8/Materials | Evolved 4 slots: Propulsion x4 895 | -8/Materials | Core integrity fell below 50% 928 | -8/Materials | Lost 9 parts (1p4n1u3w) 928 | -8/Materials | Lost 10 allies 1398 | -8/Materials | Identified exit to Factory 1664 | -8/Materials | Identified exit to Garrison 1664 | -8/Materials | Entered Garrison 1678 | -8/Garrison | Installed Relay Interface Framework 1864 | -8/Garrison | Triggered checkpoint 1946 | -8/Garrison | Discovered exit to Factory (range 8) 1958 | -8/Garrison | Entered Factory 1958 | -7/Factory | Evolved 2 slots: Utility x2 2027 | -7/Factory | Identified exit to Garrison 2027 | -7/Factory | Entered Garrison 2078 | -7/Garrison | Triggered checkpoint 2295 | -7/Garrison | Triggered checkpoint 2298 | -7/Garrison | Triggered checkpoint 2300 | -7/Garrison | Triggered checkpoint 2329 | -7/Garrison | Garrison Relay disabled 2348 | -7/Garrison | Self-destructed Last Messages --------------- relay unit. 02329_ Relay Coupler [NC] tumbles out of relay unit. 02329_ Relay Coupler [Grunt] tumbles out of relay unit. 02330_ Garrison Relay collapses. 02334_ Imp. Grenade Launcher destroyed. 02340_ Surge Thruster destroyed. 02342_ VTOL Module destroyed. 02343_ Triggered Stasis Trap. 02343_ A bubble of rippling energy engulfs the area. 02343_ Field strength at 95. 02343_ Field strength at 90. 02343_ Slug penetrates Wall. 02344_ Field strength at 80. 02345_ Field strength at 71. 02346_ Field strength at 66. 02346_ Penetrated by Slug. 02347_ Field strength at 47. Map ----- +----------------------------------------------------+ | ?????????????????????????????????????????????????? | | ?????????????????????????????????????????????????? | | ?????????????????????????????????????????????????? | | ?????????????????????????????????????????????????? | | ?????????????????????????????????????????????????? | | ?????????????????????????????????????????????????? | | ?????????????????????????????????????????????????? | | ?????????????????????????????????????????????????? | | ?????????????????????????????????????????????????? | | ?????????????????????????????????????????????????? | | ?????????????????????????????????????????????????? | | ????????????????????????????#????????????????????? | | ??????????????????????????? #????????????????????? | | ??????????????????????????? ?????????????????????? | | ??????????????????????????? ?????????????????????? | | ?????????????????????????## ?????????????????????? | | ????????????????????????? ?????????????????????? | | ????????????????????????# ?????????????????????? | | ????????????????????????# #?????????????????????? | | ????????????????????????# #?????????????????????? | | ????????????????????????# #?????????????????????? | | ????????????????????????# #?????????????????????? | | ????????????????????????# #??#######????????????? | | ????????????????????????# #??#" ! ##??? ????? | | ??????????????????####### ##### !!## ??? | | ??????????????????# ;@ g g [ %" ??? | | ??????????????????# ##### ## h= ??? | | ??????????????????#?????# ## ## ## #????? | | ?????????????###### ##### ##g#?####/#####???????? | | ?????????????# [ ## # # #* #?????????? | | ?????????##### g * ## ## # #?????????? | | ?????????# + ### #####sg## #?????????? | | ?????????# ### #???????#g #### # #?????????? | | ??# ?????????# #???????# ######### ###?????????? | | ??# ????????# #???????# c #???????????? | | ??# ?####### #???????# g###########???????????? | | ??# ## ## #???????# #?????????????????????? | | ??# ## ## ##??????#s #?????????????????????? | | ??# ######## #?????????????????????? | | ??# s #?????????????????????? | | ??# #?????????????????????? | | ??# ## ## ###########?????????????????????? | | ### ## ## #???????????????????????????????? | | # % "???????????????????????????????? | | # * "???????????????????????????????? | | # "???????????????????????????????? | | # "???????????????????????????????? | | ### ## ## #???????????????????????????????? | | ### ## ## ####????????????????????????????? | | ?????????????????????????? | +----------------------------------------------------+ Best States ------------- Heat Dissipation 34 Energy Generation 14 Energy Capacity 275 Matter Stores 300 Matter Capacity 300 Sight Range 16 Terrain Scan Density 10 Cloak Strength 5 Armor Coverage 150 Evasion (%) 64 Recoil Reduction 6 Defensive Hacking 10 Item Schematics ----------------- None Robot Schematics ------------------ None Fabricated ------------ Nothing Alien Tech Used ----------------- None Achievements -------------- None Challenges ------------ None Game ------ Seed ArchitectGravityStick Manual? 0 Play Time 00:34:58 Cumulative 111.1 hours Start 2024.04.03 @ 13:16:22 End 2024.04.03 @ 13:49:27 Sessions 1 Manual Loads 0 Difficulty Rogue Special Mode None Game No. 115 Rogue 112 Adventurer 0 Explorer 3 Win Type - Total 0 Types 0/0/0/0/0/0/0/0/0 Lore% 31 Gallery% 47 Achievement% 34 Wizard Run 0 Options --------- Layout 1 ASCII 0 Keyboard 0 Movement Mouse Keybinds 0 Fullscreen 2 Font 24/Tamsyn Map View 50x35 Zoom Use 0% Tactical HUD 1 Map Filters NONE Filters NONE Steam 1 RUN: 4df11ae4-0511-40bd-92ca-c3336f1894dc